[Event "DVM U12 2024"]
[Site "Heidelberg"]
[Date "2024.12.29"]
[Round "5"]
[White "Berger, Friedrich Richard"]
[Black "Wingerath, Felix"]
[Result "1-0"]
[ECO "B22"]
[WhiteElo "1658"]
[BlackElo "1753"]
[Annotator "NA"]
[PlyCount "61"]
[EventDate "2024.12.23"]
[EventType "team-tourn"]
[EventRounds "7"]
[EventCountry "GER"]
[SourceTitle "playchess.com"]
[Source "ChessBase"]
[SourceQuality "1"]
[TimeControl "40/5400+30:1800+30"]

1. e4 {[%emt 0:00:04]} c5 {[%emt 0:00:04]} 2. d4 {[%emt 0:01:00]} cxd4 {[%emt 0:00:06]} 3. c3 {[%emt 0:00:30]} Nf6 {[%emt 0:00:02]} 4. e5 {[%emt 0:00:19]} Nd5 {[%emt 0:00:03]} 5. Qxd4 {[%emt 0:04:57]} e6 {[%emt 0:00:02]} 6. Nf3 {[%emt 0:00:17]} Nc6 {[%emt 0:00:20]} 7. Qe4 {[%emt 0:00:08]} f5 {[%emt 0:00:01]} 8. Qe2 {[%emt 0:00:24]} b5 {[%emt 0:00:56]} 9. g3 {[%emt 0:05:03]} Be7 {[%emt 0:03:05]} 10. Bg2 {[%emt 0:02:14]} O-O {[%emt 0:00:21]} 11. O-O {[%emt 0:01:36]} a6 {[%emt 0:01:11]} 12. Rd1 {[%emt 0:02:54]} Qc7 {[%emt 0:01:01]} 13. b3 {[%emt 0:02:19]} Bb7 {[%emt 0:01:41]} 14. Bb2 {[%emt 0:00:49]} f4 {[%emt 0:01:17]} 15. Nbd2 {[%emt 0:01:55]} fxg3 {[%emt 0:01:30]} 16. hxg3 {[%emt 0:00:43]} Rf5 {[%emt 0:09:57]} 17. c4 {[%emt 0:02:09]} bxc4 {[%emt 0:00:51]} 18. Nxc4 {[%emt 0:02:02]} Raf8 {[%emt 0:03:12]} 19. Rac1 {[%emt 0:04:23]} Bg5 {[%emt 0:03:19]} 20. Nxg5 {[%emt 0:01:35]} Rxg5 {[%emt 0:00:13]} 21. Ba3 {[%emt 0:02:17]} Ncb4 {[%emt 0:11:30]} 22. Bxd5 {[%emt 0:01:48]} Bxd5 {[%emt 0:02:05]} 23. Rxd5 {[%emt 0:10:49]} Nxd5 {[%emt 0:04:14]} 24. Bxf8 {[%emt 0:00:27]} Kxf8 {[%emt 0:00:14]} 25. Qb2 {[%emt 0:06:30]} Qd8 {[%emt 0:02:23]} 26. Qa3+ {[%emt 0:01:28]} Kg8 {[%emt 0:00:12]} 27. Nd6 {[%emt 0:02:39]} Ne7 {[%emt 0:00:38]} 28. Qxa6 {[%emt 0:03:08]} Rxe5 {[%emt 0:00:58]} 29. b4 {[%emt 0:00:52]} h6 {[%emt 0:02:48]} 30. b5 {[%emt 0:00:48]} Kh7 {[%emt 0:00:16]} 31. Nf7 {[%emt 0:01:08]} 1-0

[Event "DVM U12 2024"]
[Site "Heidelberg"]
[Date "2024.12.29"]
[Round "5"]
[White "Bergmann, Rafael Antonio"]
[Black "Grabowski, Joshua"]
[Result "0-1"]
[ECO "C07"]
[WhiteElo "1647"]
[BlackElo "1745"]
[Annotator "NA RC"]
[PlyCount "140"]
[EventDate "2024.12.23"]
[EventType "team-tourn"]
[EventRounds "7"]
[EventCountry "GER"]
[SourceTitle "playchess.com"]
[Source "ChessBase"]
[SourceQuality "1"]
[TimeControl "40/5400+30:1800+30"]

1. e4 {[%emt 0:00:01]} e6 {[%emt 0:00:03]} 2. d4 {[%emt 0:00:06]} d5 {[%emt 0:00:05]} 3. Nd2 {[%emt 0:00:05]} c5 {[%emt 0:00:05]} 4. exd5 {[%emt 0:00:07]} Qxd5 {[%emt 0:00:06]} 5. Ngf3 {[%emt 0:00:10]} cxd4 {[%emt 0:00:07]} 6. Bc4 {[%emt 0:00:09]} Qd6 {[%emt 0:00:05]} 7. O-O {[%emt 0:00:09]} Nf6 {[%emt 0:00:20]} 8. Nb3 {[%emt 0:00:04]} Nc6 {[%emt 0:00:07]} 9. Nbxd4 {[%emt 0:00:08]} Nxd4 {[%emt 0:00:09]} 10. Nxd4 {[%emt 0:00:05]} Be7 {[%emt 0:00:20]} 11. c3 {[%emt 0:00:22]} O-O {[%emt 0:00:11]} 12. Be3 {[%emt 0:02:18]} e5 {[%emt 0:18:01]} 13. Nb3 {[%emt 0:05:27]} Qc6 {[%emt 0:02:26]} 14. Qe2 {[%emt 0:01:26]} Ng4 {[%emt 0:11:40]} 15. Bd2 {[%emt 0:09:19]} Qc7 {[%emt 0:13:20]} 16. h3 {[%emt 0:02:18]} Nf6 {[%emt 0:02:35]} 17. Rfe1 {[%emt 0:04:43]} Nd7 {[%emt 0:04:44]} 18. Bb5 {[%emt 0:01:46]} f6 {[%emt 0:01:44]} 19. Qc4+ {[%emt 0:00:53]} Qxc4 {[%emt 0:00:11]} 20. Bxc4+ {[%emt 0:00:04]} Kh8 {[%emt 0:00:11]} 21. f4 {[%emt 0:04:50]} Bd6 {[%emt 0:01:54]} 22. fxe5 {[%emt 0:00:32]} Nxe5 {[%emt 0:00:24]} 23. Bf1 {[%emt 0:00:17]} Bf5 {[%emt 0:03:44]} 24. Nd4 {[%emt 0:01:47]} Bd3 {[%emt 0:05:53]} 25. Bf4 {[%emt 0:10:17]} Bxf1 {[%emt 0:02:56]} 26. Rxf1 {[%emt 0:00:36]} Bc5 {[%emt 0:00:20]} 27. Rad1 {[%emt 0:00:57]} Rad8 {[%emt 0:00:23]} 28. Kh1 {[%emt 0:01:25]} Bxd4 {[%emt 0:00:23]} 29. Rxd4 {[%emt 0:00:48]} Rxd4 {[%emt 0:00:08]} 30. cxd4 {[%emt 0:00:08]} Nd3 {[%emt 0:00:12]} 31. Bc7 {[%emt 0:02:09]} Rc8 {[%emt 0:02:46]} 32. Rf3 {[%emt 0:01:03]} Nxb2 {[%emt 0:02:08]} 33. Rb3 {[%emt 0:00:50]} Rxc7 {[%emt 0:00:27]} 34. Rxb2 {[%emt 0:00:11]} Kg8 {[%emt 0:00:57]} 35. Kg1 {[%emt 0:00:11]} Kf7 {[%emt 0:00:10]} 36. Kf2 {[%emt 0:00:06]} Ke6 {[%emt 0:00:54]} 37. Ke3 {[%emt 0:00:10]} b6 {[%emt 0:02:13]} 38. Kd3 {[%emt 0:01:20]} Rd7 {[%emt 0:02:15]} 39. Re2+ {[%emt 0:00:20]} Kd5 {[%emt 0:01:29]} 40. Re8 {[%emt 0:01:52]} Kd6 {[%emt 0:06:57]} 41. Re2 {[%emt 0:37:25]} Re7 {[%emt 0:32:28]} 42. Rc2 {[%emt 0:00:28]} Re8 {[%emt 0:00:28]} 43. Rb2 {[%emt 0:00:30]} f5 {[%emt 0:02:53]} 44. Rf2 {[%emt 0:00:20]} g6 {[%emt 0:00:11]} 45. Rb2 {[%emt 0:02:03]} h5 {[%emt 0:02:07]} 46. Rb1 {[%emt 0:03:53]} Re4 {[%emt 0:01:38]} 47. g3 {[%emt 0:00:29]} Kc6 {[%emt 0:02:59]} 48. a4 {[%emt 0:02:35]} Re7 {[%emt 0:01:18]} 49. Rc1+ {[%emt 0:05:27]} Kd6 {[%emt 0:01:20]} 50. Rb1 {[%emt 0:00:16]} g5 {[%emt 0:06:27]} 51. Rb5 {[%emt 0:00:53]} Rf7 {[%emt 0:00:00]} 52. Re5 {[%emt 0:00:00]} h4 {[%emt 0:00:00]} 53. gxh4 {[%emt 0:00:00]} gxh4 {[%emt 0:00:00]} 54. Ke3 {[%emt 0:00:00]} Re7 {[%emt 0:00:00]} 55. Rxe7 {[%emt 0:00:00]} Kxe7 {[%emt 0:00:00]} 56. Kf4 {[%emt 0:00:00]} Kd6 {[%emt 0:00:00]} 57. Kxf5 {[%emt 0:00:00]} Kd5 {[%emt 0:00:00]} 58. Kg4 {[%emt 0:00:00]} a6 {[%emt 0:00:00]} 59. Kxh4 {[%emt 0:00:00]} b5 {[%emt 0:00:00]} 60. axb5 {[%emt 0:00:00]} axb5 {[%emt 0:00:00]} 61. Kg5 {[%emt 0:00:00]} b4 {[%emt 0:00:00]} 62. h4 {[%emt 0:00:00]} b3 {[%emt 0:00:00]} 63. Kf6 {[%emt 0:00:00]} b2 {[%emt 0:00:00]} 64. h5 {[%emt 0:00:00]} b1=Q {[%emt 0:00:00]} 65. Kg7 {[%emt 0:00:00]} Qg1+ {[%emt 0:00:00]} 66. Kh7 {[%emt 0:00:00]} Qg5 {[%emt 0:00:00]} 67. h6 {[%emt 0:00:00]} Ke6 {[%emt 0:00:00]} 68. Kh8 {[%emt 0:00:00]} Qg6 {[%emt 0:00:00]} 69. d5+ {[%emt 0:00:00]} Kf7 {[%emt 0:00:00]} 70. d6 {[%emt 0:00:00]} Qxh6# {[%emt 0:00:00]} 0-1

[Event "DVM U12 2024"]
[Site "Heidelberg"]
[Date "2024.12.29"]
[Round "5"]
[White "Hendler, Maximilian"]
[Black "Liu, Kairui"]
[Result "1/2-1/2"]
[ECO "C54"]
[WhiteElo "1644"]
[BlackElo "1559"]
[Annotator "NA"]
[PlyCount "52"]
[EventDate "2024.12.23"]
[EventType "team-tourn"]
[EventRounds "7"]
[EventCountry "GER"]
[SourceTitle "playchess.com"]
[Source "ChessBase"]
[SourceQuality "1"]
[TimeControl "40/5400+30:1800+30"]

1. e4 {[%emt 0:00:03]} e5 {[%emt 0:00:04]} 2. Nf3 {[%emt 0:00:12]} Nc6 {[%emt 0:00:14]} 3. Bc4 {[%emt 0:00:12]} Bc5 {[%emt 0:00:05]} 4. c3 {[%emt 0:00:22]} Nf6 {[%emt 0:00:06]} 5. d4 {[%emt 0:00:15]} exd4 {[%emt 0:00:05]} 6. e5 {[%emt 0:00:20]} d5 {[%emt 0:00:05]} 7. Bb5 {[%emt 0:00:25]} Ne4 {[%emt 0:00:48]} 8. cxd4 {[%emt 0:00:23]} Bb6 {[%emt 0:00:09]} 9. O-O {[%emt 0:02:11]} Bd7 {[%emt 0:01:25]} 10. Be3 {[%emt 0:05:13]} O-O {[%emt 0:01:14]} 11. Nbd2 {[%emt 0:00:21]} Nxd2 {[%emt 0:00:25]} 12. Qxd2 {[%emt 0:00:53]} Ne7 {[%emt 0:03:56]} 13. Bd3 {[%emt 0:04:29]} Bf5 {[%emt 0:02:27]} 14. Qc2 {[%emt 0:01:38]} Bxd3 {[%emt 0:02:09]} 15. Qxd3 {[%emt 0:00:14]} Qd7 {[%emt 0:01:04]} 16. Ng5 {[%emt 0:03:00]} Qf5 {[%emt 0:01:23]} 17. Qxf5 {[%emt 0:03:46]} Nxf5 {[%emt 0:00:48]} 18. Nf3 {[%emt 0:01:50]} Rac8 {[%emt 0:02:01]} 19. Rac1 {[%emt 0:00:59]} h6 {[%emt 0:01:06]} 20. Rc3 {[%emt 0:04:39]} Rfe8 {[%emt 0:00:58]} 21. g4 {[%emt 0:01:11]} Nxe3 {[%emt 0:00:56]} 22. Rxe3 {[%emt 0:00:47]} Re6 {[%emt 0:00:31]} 23. Rc1 {[%emt 0:01:50]} Rg6 {[%emt 0:01:27]} 24. h3 {[%emt 0:03:02]} c6 {[%emt 0:03:38]} 25. Kg2 {[%emt 0:07:22]} Bd8 {[%emt 0:03:26]} 26. Rh1 {[%emt 0:05:01]} Be7 {[%emt 0:29:11]} 1/2-1/2

[Event "DVM U12 2024"]
[Site "Heidelberg"]
[Date "2024.12.29"]
[Round "5"]
[White "Voelpel, Alexander"]
[Black "Borchert, Yuri"]
[Result "1-0"]
[ECO "C42"]
[WhiteElo "1628"]
[BlackElo "1518"]
[Annotator "NA RC"]
[PlyCount "131"]
[EventDate "2024.12.23"]
[EventType "team-tourn"]
[EventRounds "7"]
[EventCountry "GER"]
[SourceTitle "playchess.com"]
[Source "ChessBase"]
[SourceQuality "1"]
[TimeControl "40/5400+30:1800+30"]

1. e4 {[%emt 0:00:02]} e5 {[%emt 0:00:11]} 2. Nf3 {[%emt 0:00:05]} Nf6 {[%emt 0:00:10]} 3. Nxe5 {[%emt 0:00:10]} d6 {[%emt 0:00:41]} 4. Nf3 {[%emt 0:00:13]} Nxe4 {[%emt 0:00:29]} 5. Bd3 {[%emt 0:01:30]} Nf6 {[%emt 0:00:59]} 6. h3 {[%emt 0:00:21]} Be7 {[%emt 0:02:20]} 7. c3 {[%emt 0:01:18]} O-O {[%emt 0:03:34]} 8. O-O {[%emt 0:00:16]} d5 {[%emt 0:03:07]} 9. Bc2 {[%emt 0:00:31]} Nc6 {[%emt 0:03:36]} 10. d4 {[%emt 0:00:30]} Bd6 {[%emt 0:04:05]} 11. Qd3 {[%emt 0:07:54]} h6 {[%emt 0:03:24]} 12. Nbd2 {[%emt 0:18:09]} Re8 {[%emt 0:03:59]} 13. Re1 {[%emt 0:02:54]} Rxe1+ {[%emt 0:03:02]} 14. Nxe1 {[%emt 0:00:40]} Qe7 {[%emt 0:00:32]} 15. Nef3 {[%emt 0:03:46]} Bd7 {[%emt 0:06:32]} 16. b3 {[%emt 0:04:16]} Re8 {[%emt 0:10:53]} 17. Bb2 {[%emt 0:09:03]} Ne4 {[%emt 0:04:32]} 18. Re1 {[%emt 0:09:47]} Bf5 {[%emt 0:12:05]} 19. Qb5 {[%emt 0:12:26]} Qd7 {[%emt 0:17:52]} 20. Qxb7 {[%emt 0:11:10]} Nxd2 {[%emt 0:02:20]} 21. Rxe8+ {[%emt 0:01:19]} Qxe8 {[%emt 0:00:17]} 22. Bxf5 {[%emt 0:00:43]} Nxf3+ {[%emt 0:04:55]} 23. gxf3 {[%emt 0:00:22]} g6 {[%emt 0:00:52]} 24. Qc8 {[%emt 0:02:52]} Qxc8 {[%emt 0:03:50]} 25. Bxc8 {[%emt 0:00:11]} Ne7 {[%emt 0:00:35]} 26. Ba6 {[%emt 0:00:20]} Nf5 {[%emt 0:00:31]} 27. Bb7 {[%emt 0:01:57]} Ne7 {[%emt 0:00:17]} 28. Kf1 {[%emt 0:01:19]} Kg7 {[%emt 0:00:24]} 29. c4 {[%emt 0:00:29]} dxc4 {[%emt 0:00:58]} 30. bxc4 {[%emt 0:00:23]} f6 {[%emt 0:00:25]} 31. Bc1 {[%emt 0:00:34]} Nf5 {[%emt 0:00:22]} 32. d5 {[%emt 0:04:04]} Nd4 {[%emt 0:00:11]} 33. Kg2 {[%emt 0:01:41]} g5 {[%emt 0:00:34]} 34. Be3 {[%emt 0:00:18]} Ne2 {[%emt 0:00:48]} 35. Bxa7 {[%emt 0:01:44]} Nf4+ {[%emt 0:00:17]} 36. Kf1 {[%emt 0:00:06]} Nxh3 {[%emt 0:00:22]} 37. a4 {[%emt 0:00:14]} Bb4 {[%emt 0:00:49]} 38. Bb8 {[%emt 0:00:25]} Ba5 {[%emt 0:00:24]} 39. c5 {[%emt 0:00:11]} Kf7 {[%emt 0:00:35]} 40. d6 {[%emt 0:00:48]} cxd6 {[%emt 0:01:01]} 41. Bxd6 {[%emt 0:30:49]} Ke6 {[%emt 0:33:00]} 42. Bc8+ {[%emt 0:00:13]} Kd5 {[%emt 0:01:44]} 43. Bxh3 {[%emt 0:00:08]} Kc6 {[%emt 0:00:39]} 44. Be6 {[%emt 0:05:19]} Bc3 {[%emt 0:00:00]} 45. Kg2 {[%emt 0:00:00]} h5 {[%emt 0:00:00]} 46. Kg3 {[%emt 0:00:00]} Be5+ {[%emt 0:00:00]} 47. Bxe5 {[%emt 0:00:00]} fxe5 {[%emt 0:00:00]} 48. Bf7 {[%emt 0:00:00]} h4+ {[%emt 0:00:00]} 49. Kh3 {[%emt 0:00:00]} Kxc5 {[%emt 0:00:00]} 50. Be8 {[%emt 0:00:00]} Kb4 {[%emt 0:00:00]} 51. Bd7 {[%emt 0:00:00]} Ka5 {[%emt 0:00:00]} 52. Kg4 {[%emt 0:00:00]} Kb4 {[%emt 0:00:00]} 53. Kxg5 {[%emt 0:00:00]} h3 {[%emt 0:00:00]} 54. Bxh3 {[%emt 0:00:00]} Kxa4 {[%emt 0:00:00]} 55. Kf5 {[%emt 0:00:00]} Kb5 {[%emt 0:00:00]} 56. Kxe5 {[%emt 0:00:00]} Kc6 {[%emt 0:00:00]} 57. Ke6 {[%emt 0:00:00]} Kc7 {[%emt 0:00:00]} 58. Ke7 {[%emt 0:00:00]} Kb8 {[%emt 0:00:15]} 59. f4 {[%emt 0:00:00]} Kc7 {[%emt 0:00:00]} 60. f5 {[%emt 0:00:00]} Kb8 {[%emt 0:00:00]} 61. f6 {[%emt 0:00:00]} Kc7 {[%emt 0:00:00]} 62. f7 {[%emt 0:00:00]} Kb7 {[%emt 0:00:00]} 63. f8=Q {[%emt 0:00:07]} Kb6 {[%emt 0:00:09]} 64. Qb8+ {[%emt 0:00:00]} Ka6 {[%emt 0:00:00]} 65. Bd7 {[%emt 0:00:00]} Ka5 {[%emt 0:00:00]} 66. Qb5# {[%emt 0:00:00]} 1-0

[Event "DVM U12 2024"]
[Site "Heidelberg"]
[Date "2024.12.29"]
[Round "5"]
[White "Atar, Semih Akif"]
[Black "Vu, Khoi Nguyen"]
[Result "1-0"]
[ECO "D34"]
[WhiteElo "1624"]
[BlackElo "1730"]
[Annotator "NA"]
[PlyCount "64"]
[EventDate "2024.12.23"]
[EventType "team-tourn"]
[EventRounds "7"]
[EventCountry "GER"]
[SourceTitle "playchess.com"]
[Source "ChessBase"]
[SourceQuality "1"]
[TimeControl "40/5400+30:1800+30"]

1. c4 {[%emt 0:00:01]} Nf6 {[%emt 0:00:07]} 2. g3 {[%emt 0:00:07]} e6 {[%emt 0:00:06]} 3. Bg2 {[%emt 0:00:05]} d5 {[%emt 0:00:05]} 4. Nf3 {[%emt 0:00:38]} Be7 {[%emt 0:00:34]} 5. O-O {[%emt 0:00:50]} O-O {[%emt 0:00:04]} 6. cxd5 {[%emt 0:00:26]} exd5 {[%emt 0:00:21]} 7. d4 {[%emt 0:00:32]} c5 {[%emt 0:03:50]} 8. Bf4 {[%emt 0:00:15]} Nc6 {[%emt 0:01:34]} 9. Nc3 {[%emt 0:02:51]} b6 {[%emt 0:03:19]} 10. Ne5 {[%emt 0:00:43]} Nxd4 {[%emt 0:02:55]} 11. e3 {[%emt 0:01:19]} Ne6 {[%emt 0:04:14]} 12. Nxd5 {[%emt 0:03:03]} Ba6 {[%emt 0:02:59]} 13. Nc6 {[%emt 0:03:37]} Qe8 {[%emt 0:03:41]} 14. Ncxe7+ {[%emt 0:02:42]} Kh8 {[%emt 0:00:20]} 15. Re1 {[%emt 0:02:53]} Nxd5 {[%emt 0:15:06]} 16. Nxd5 {[%emt 0:02:19]} Rd8 {[%emt 0:01:16]} 17. Qb3 {[%emt 0:05:05]} c4 {[%emt 0:03:34]} 18. Qb4 {[%emt 0:08:02]} Nc5 {[%emt 0:01:21]} 19. Nc7 {[%emt 0:04:15]} Qd7 {[%emt 0:01:55]} 20. Nxa6 {[%emt 0:04:16]} Nxa6 {[%emt 0:00:04]} 21. Qxc4 {[%emt 0:00:29]} Nc5 {[%emt 0:00:01]} 22. Bf3 {[%emt 0:07:25]} Rc8 {[%emt 0:01:19]} 23. Red1 {[%emt 0:04:31]} Qh3 {[%emt 0:00:55]} 24. Qd4 {[%emt 0:01:07]} Ne6 {[%emt 0:00:22]} 25. Qe5 {[%emt 0:00:35]} Rc5 {[%emt 0:00:37]} 26. Qd6 {[%emt 0:09:54]} Rfc8 {[%emt 0:02:50]} 27. Bb7 {[%emt 0:07:27]} Rf8 {[%emt 0:03:28]} 28. Bd5 {[%emt 0:05:17]} Rd8 {[%emt 0:00:42]} 29. Bxe6 {[%emt 0:00:31]} Rxd6 {[%emt 0:00:38]} 30. Bxh3 {[%emt 0:00:09]} Rxd1+ {[%emt 0:00:06]} 31. Rxd1 {[%emt 0:00:35]} h6 {[%emt 0:00:04]} 32. Bg2 {[%emt 0:00:25]} Rc2 {[%emt 0:00:08]} 1-0

[Event "DVM U12 2024"]
[Site "Heidelberg"]
[Date "2024.12.29"]
[Round "5"]
[White "Dilger, Ludwig"]
[Black "Jahn, Gustav"]
[Result "0-1"]
[ECO "C01"]
[WhiteElo "1615"]
[BlackElo "1822"]
[Annotator "NA"]
[PlyCount "64"]
[EventDate "2024.12.23"]
[EventType "team-tourn"]
[EventRounds "7"]
[EventCountry "GER"]
[SourceTitle "playchess.com"]
[Source "ChessBase"]
[SourceQuality "1"]
[TimeControl "40/5400+30:1800+30"]

1. e4 {[%emt 0:00:01]} e6 {[%emt 0:00:07]} 2. d4 {[%emt 0:00:30]} d5 {[%emt 0:00:07]} 3. exd5 {[%emt 0:01:00]} exd5 {[%emt 0:00:11]} 4. Nf3 {[%emt 0:02:14]} Nc6 {[%emt 0:00:46]} 5. c4 {[%emt 0:05:56]} Nf6 {[%emt 0:02:04]} 6. Nc3 {[%emt 0:06:26]} Bb4 {[%emt 0:01:35]} 7. Bd3 {[%emt 0:08:30]} Bg4 {[%emt 0:01:48]} 8. O-O {[%emt 0:07:32]} Nxd4 {[%emt 0:05:47]} 9. Re1+ {[%emt 0:05:40]} Be7 {[%emt 0:00:49]} 10. Qa4+ {[%emt 0:05:32]} Bd7 {[%emt 0:00:48]} 11. Qd1 {[%emt 0:01:01]} Nxf3+ {[%emt 0:00:16]} 12. Qxf3 {[%emt 0:00:15]} O-O {[%emt 0:07:48]} 13. Nxd5 {[%emt 0:04:14]} Nxd5 {[%emt 0:00:16]} 14. cxd5 {[%emt 0:05:18]} Bf6 {[%emt 0:04:02]} 15. Qe4 {[%emt 0:06:51]} g6 {[%emt 0:01:05]} 16. Bh6 {[%emt 0:02:44]} Re8 {[%emt 0:01:58]} 17. Qb4 {[%emt 0:01:38]} b6 {[%emt 0:08:24]} 18. Rab1 {[%emt 0:02:14]} Re5 {[%emt 0:02:19]} 19. Rxe5 {[%emt 0:01:15]} Bxe5 {[%emt 0:00:10]} 20. b3 {[%emt 0:04:13]} Qf6 {[%emt 0:02:05]} 21. h4 {[%emt 0:01:08]} Bd6 {[%emt 0:06:45]} 22. Bg5 {[%emt 0:03:33]} Qe5 {[%emt 0:09:05]} 23. Qe4 {[%emt 0:02:52]} Qh2+ {[%emt 0:00:10]} 24. Kf1 {[%emt 0:00:44]} Re8 {[%emt 0:00:20]} 25. Qxe8+ {[%emt 0:02:07]} Bxe8 {[%emt 0:00:08]} 26. Re1 {[%emt 0:00:23]} Bd7 {[%emt 0:00:37]} 27. Re3 {[%emt 0:00:21]} Qh1+ {[%emt 0:00:42]} 28. Ke2 {[%emt 0:00:13]} Bg4+ {[%emt 0:00:22]} 29. Kd2 {[%emt 0:00:31]} Qd1+ {[%emt 0:01:44]} 30. Kc3 {[%emt 0:00:10]} Qa1+ {[%emt 0:00:31]} 31. Kd2 {[%emt 0:01:01]} Bb4+ {[%emt 0:00:14]} 32. Kc2 {[%emt 0:00:06]} Bd1# {[%emt 0:00:15]} 0-1

[Event "DVM U12 2024"]
[Site "Heidelberg"]
[Date "2024.12.29"]
[Round "5"]
[White "Sriram, Aumkar"]
[Black "Boroshnev, Dmytro"]
[Result "0-1"]
[ECO "B40"]
[WhiteElo "1610"]
[BlackElo "1627"]
[Annotator "NA"]
[PlyCount "78"]
[EventDate "2024.12.23"]
[EventType "team-tourn"]
[EventRounds "7"]
[EventCountry "GER"]
[SourceTitle "playchess.com"]
[Source "ChessBase"]
[SourceQuality "1"]
[TimeControl "40/5400+30:1800+30"]

1. e4 {[%emt 0:00:06]} c5 {[%emt 0:00:05]} 2. Nf3 {[%emt 0:00:17]} d6 {[%emt 0:00:06]} 3. g3 {[%emt 0:00:15]} Nf6 {[%emt 0:00:29]} 4. d3 {[%emt 0:01:52]} e6 {[%emt 0:00:43]} 5. Bg2 {[%emt 0:00:11]} Be7 {[%emt 0:00:13]} 6. Nc3 {[%emt 0:00:14]} Nbd7 {[%emt 0:00:41]} 7. b3 {[%emt 0:01:07]} Rb8 {[%emt 0:00:49]} 8. Bb2 {[%emt 0:00:30]} a6 {[%emt 0:01:00]} 9. Qe2 {[%emt 0:03:31]} Qc7 {[%emt 0:00:49]} 10. O-O {[%emt 0:01:20]} O-O {[%emt 0:00:28]} 11. Rfe1 {[%emt 0:00:13]} e5 {[%emt 0:02:42]} 12. Nd5 {[%emt 0:02:36]} Nxd5 {[%emt 0:00:15]} 13. exd5 {[%emt 0:00:03]} f5 {[%emt 0:01:04]} 14. c3 {[%emt 0:01:54]} Bf6 {[%emt 0:05:17]} 15. b4 {[%emt 0:04:22]} b6 {[%emt 0:02:03]} 16. a4 {[%emt 0:03:40]} Bb7 {[%emt 0:07:25]} 17. bxc5 {[%emt 0:01:22]} bxc5 {[%emt 0:01:04]} 18. c4 {[%emt 0:00:54]} Ba8 {[%emt 0:00:28]} 19. Bc1 {[%emt 0:07:14]} e4 {[%emt 0:01:41]} 20. Ng5 {[%emt 0:05:07]} Bxa1 {[%emt 0:00:26]} 21. Ne6 {[%emt 0:00:24]} Qc8 {[%emt 0:00:16]} 22. Nxf8 {[%emt 0:00:57]} Qxf8 {[%emt 0:00:12]} 23. dxe4 {[%emt 0:01:04]} Bc3 {[%emt 0:01:22]} 24. Rd1 {[%emt 0:01:09]} Re8 {[%emt 0:01:56]} 25. Qc2 {[%emt 0:01:40]} Bd4 {[%emt 0:02:26]} 26. exf5 {[%emt 0:02:32]} Qf6 {[%emt 0:01:25]} 27. h4 {[%emt 0:03:54]} h6 {[%emt 0:01:00]} 28. Bf4 {[%emt 0:00:29]} Bb7 {[%emt 0:04:28]} 29. Qb3 {[%emt 0:00:38]} Bc8 {[%emt 0:00:52]} 30. a5 {[%emt 0:01:00]} Ne5 {[%emt 0:02:06]} 31. Qb8 {[%emt 0:01:40]} Nxc4 {[%emt 0:02:47]} 32. Qc7 {[%emt 0:02:46]} Bxf5 {[%emt 0:01:38]} 33. Rc1 {[%emt 0:00:35]} Ne5 {[%emt 0:00:22]} 34. Qb7 {[%emt 0:00:56]} Nd3 {[%emt 0:01:22]} 35. Rd1 {[%emt 0:01:20]} Nxf2 {[%emt 0:01:04]} 36. Rf1 {[%emt 0:00:34]} Nd3+ {[%emt 0:00:47]} 37. Kh2 {[%emt 0:00:21]} Nxf4 {[%emt 0:00:42]} 38. gxf4 {[%emt 0:00:05]} Qxh4+ {[%emt 0:00:08]} 39. Bh3 {[%emt 0:00:34]} Qxh3# {[%emt 0:00:06]} 0-1

[Event "DVM U12 2024"]
[Site "Heidelberg"]
[Date "2024.12.29"]
[Round "5"]
[White "Pflugbeil, Julian"]
[Black "Martin Fernandez, Felix"]
[Result "0-1"]
[ECO "D00"]
[WhiteElo "1586"]
[BlackElo "1624"]
[Annotator "NA"]
[PlyCount "116"]
[EventDate "2024.12.23"]
[EventType "team-tourn"]
[EventRounds "7"]
[EventCountry "GER"]
[SourceTitle "playchess.com"]
[Source "ChessBase"]
[SourceQuality "1"]
[TimeControl "40/5400+30:1800+30"]

1. d4 {[%emt 0:00:06]} Nf6 {[%emt 0:00:06]} 2. Nc3 {[%emt 0:00:14]} d5 {[%emt 0:00:07]} 3. g3 {[%emt 0:00:10]} c5 {[%emt 0:00:14]} 4. Bg2 {[%emt 0:00:05]} cxd4 {[%emt 0:00:39]} 5. Qxd4 {[%emt 0:00:09]} Nc6 {[%emt 0:00:25]} 6. Qd1 {[%emt 0:03:16]} e6 {[%emt 0:00:22]} 7. Nf3 {[%emt 0:00:10]} Be7 {[%emt 0:01:18]} 8. O-O {[%emt 0:00:28]} O-O {[%emt 0:00:23]} 9. Bf4 {[%emt 0:00:16]} a6 {[%emt 0:01:52]} 10. Nd4 {[%emt 0:00:56]} Nh5 {[%emt 0:02:37]} 11. e3 {[%emt 0:01:26]} Nxf4 {[%emt 0:00:14]} 12. exf4 {[%emt 0:00:30]} Bf6 {[%emt 0:02:15]} 13. Nf3 {[%emt 0:01:48]} b5 {[%emt 0:04:44]} 14. a3 {[%emt 0:00:59]} Na5 {[%emt 0:01:30]} 15. Ne5 {[%emt 0:01:04]} Nc4 {[%emt 0:02:43]} 16. Nxc4 {[%emt 0:00:59]} bxc4 {[%emt 0:00:06]} 17. Qf3 {[%emt 0:00:48]} Rb8 {[%emt 0:01:22]} 18. Rab1 {[%emt 0:00:45]} Bb7 {[%emt 0:02:20]} 19. Rfd1 {[%emt 0:01:21]} Qa5 {[%emt 0:03:36]} 20. Ne2 {[%emt 0:07:15]} d4 {[%emt 0:09:17]} 21. Qg4 {[%emt 0:00:50]} Bxg2 {[%emt 0:00:14]} 22. Kxg2 {[%emt 0:00:05]} Qd5+ {[%emt 0:01:39]} 23. Qf3 {[%emt 0:00:16]} Qxf3+ {[%emt 0:00:24]} 24. Kxf3 {[%emt 0:00:04]} Rfd8 {[%emt 0:03:04]} 25. Ke4 {[%emt 0:00:18]} d3 {[%emt 0:01:45]} 26. cxd3 {[%emt 0:00:07]} cxd3 {[%emt 0:00:05]} 27. b4 {[%emt 0:00:04]} dxe2 {[%emt 0:01:18]} 28. Re1 {[%emt 0:00:06]} Rbc8 {[%emt 0:01:44]} 29. Rxe2 {[%emt 0:00:15]} Rc3 {[%emt 0:00:15]} 30. Re3 {[%emt 0:00:17]} Rxe3+ {[%emt 0:00:51]} 31. fxe3 {[%emt 0:00:08]} Kf8 {[%emt 0:00:19]} 32. g4 {[%emt 0:00:05]} h6 {[%emt 0:00:52]} 33. a4 {[%emt 0:00:27]} Rd6 {[%emt 0:01:52]} 34. Rc1 {[%emt 0:00:34]} Rb6 {[%emt 0:01:10]} 35. Rc4 {[%emt 0:00:26]} Ke8 {[%emt 0:00:50]} 36. Kd3 {[%emt 0:05:37]} g5 {[%emt 0:05:11]} 37. f5 {[%emt 0:00:00]} exf5 {[%emt 0:00:49]} 38. gxf5 {[%emt 0:00:00]} Be5 {[%emt 0:01:05]} 39. h3 {[%emt 0:00:00]} Ke7 {[%emt 0:01:06]} 40. Ke4 {[%emt 0:00:00]} Kf6 {[%emt 0:00:17]} 41. b5 {[%emt 0:26:57]} axb5 {[%emt 0:33:36]} 42. axb5 {[%emt 0:00:20]} Rxb5 {[%emt 0:01:07]} 43. Rc6+ {[%emt 0:00:04]} Kg7 {[%emt 0:00:04]} 44. Kf3 {[%emt 0:00:15]} f6 {[%emt 0:01:16]} 45. Re6 {[%emt 0:00:13]} Kf7 {[%emt 0:00:44]} 46. Ra6 {[%emt 0:00:27]} h5 {[%emt 0:00:44]} 47. Ra7+ {[%emt 0:00:04]} Ke8 {[%emt 0:00:18]} 48. Ra4 {[%emt 0:01:17]} Kd7 {[%emt 0:00:13]} 49. h4 {[%emt 0:00:06]} g4+ {[%emt 0:00:08]} 50. Ke4 {[%emt 0:00:24]} Kd6 {[%emt 0:00:13]} 51. Ra6+ {[%emt 0:00:31]} Kc5 {[%emt 0:00:13]} 52. Kd3 {[%emt 0:00:16]} Rb2 {[%emt 0:00:18]} 53. e4 {[%emt 0:01:29]} g3 {[%emt 0:00:37]} 54. Ra8 {[%emt 0:02:51]} g2 {[%emt 0:00:55]} 55. Rc8+ {[%emt 0:00:14]} Kd6 {[%emt 0:00:10]} 56. Rc1 {[%emt 0:02:35]} Bh2 {[%emt 0:00:25]} 57. Rd1 {[%emt 0:00:12]} g1=Q {[%emt 0:00:31]} 58. Kc4+ {[%emt 0:00:11]} Qxd1 {[%emt 0:00:03]} 0-1